{"text_format":"1","workbook":"xlsx","n_sheets":2,"sheets":["Instrukcijas un iestatīšana","12. septembris"],"not_rendered":{"charts":0,"images":0,"macros":1,"external_links":0,"defined_names":13,"comments":0,"pivot_tables":0},"unopened":[],"bounds":{"document_bytes":16777216,"sheet_cells":100000,"rows_first":2000,"rows_last":500,"rows_between":2000,"halvings":0,"cell_chars":16384,"cell_head_chars":4096},"cells_cut":0,"cells_raw":0,"read":"whole","date_system":"1900"}

{"sheet":"Instrukcijas un iestatīšana","index":0,"n_rows":23,"n_cols":9,"rows_kept":23,"cut":false,"hidden":false,"merged":[[3,2,3,4],[5,2,5,4],[7,2,7,4],[9,2,9,4],[3,7,3,8],[5,7,5,8],[7,7,7,8],[9,7,9,8],[11,7,11,8],[4,7,4,8],[6,7,6,8],[8,7,8,8],[10,7,10,8]]}
[]
[null,"Instrukcijas un iestatīšana"]
[]
[null,1,"Tālāk nodarbību sarakstā ievadiet nodarbību nosaukumus, kas jāreģistrē šajā grafikā.",null,null,null,5,"Ievadiet grafika sākuma datumu šūnā A5."]
[]
[null,2,"Tālāk aktivitāšu tabulā mainiet parauga aktivitātes atbilstoši savām vajadzībām. ",null,null,null,6,"Rindā 4 izmantojiet nolaižamo sarakstu, lai grafikam pievienotu nodarbības. "]
[]
[null,3,"Šūnā I14 iestatiet rindu skaitu, kāds katru dienu jāizmanto mājasdarbu aktivitātēm.",null,null,null,7,"Zem katras nodarbības slejā Uzdevumi pievienojiet uzdevumus."]
[]
[null,4,"Grafika lapā, piemēram, 12. septembris, izpildiet 5.–9. darbību.",null,null,null,8,"Stundu kolonnā (atzīmēta ar pulksteņa ikonu) ievadiet aptuvenu kopējo stundu skaitu, kāds būs nepieciešams katra uzdevuma veikšanai."]
[]
[null,null,null,null,null,null,9,"Kad uzdevums ir izpildīts, veiciet dubultklikšķi pabeigšanas kolonnā, kas atzīmēta ar atzīmi un atrodas blakus uzdevumam."]
[]
[null,null,"Nodarbības",null,"Aktivitātes",null,null,"Rindu skaits katrā dienā:",5]
[null,null,"Matemātika, 101",null,"Diskusija"]
[null,null,"Angļu valoda, 105",null,"Laboratorijas darbs"]
[null,null,"Franču valoda, 103",null,"Lekcija"]
[null,null,"Zinātne, 101",null,"Kontroldarbs"]
[null,null,"Vēsture, 101",null,"Lasīšana"]
[null,null,null,null,"Pārskats"]
[null,null,null,null,"Izpēte"]
[null,null,null,null,"Pārskatīt uzdevumu"]
[null,null,null,null,"Pētījums"]

{"sheet":"12. septembris","index":1,"n_rows":103,"n_cols":24,"rows_kept":103,"cut":false,"hidden":false,"merged":[]}
[]
[null,"Mājasdarbi"]
[]
[null,"Ievadiet sākuma datumu","Kopā"," Nodarbība:",null,"Matemātika, 101"," Nodarbība:",null,"Angļu valoda, 105"," Nodarbība:",null,"Franču valoda, 103"," Nodarbība:",null,"Zinātne, 101"," Nodarbība:",null,null," Nodarbība:",null,null," Nodarbība:"]
[null,"2011-09-12",null,null,null,"UZDEVUMI",null,null,"UZDEVUMI",null,null,"UZDEVUMI",null,null,"UZDEVUMI",null,null,"UZDEVUMI",null,null,"UZDEVUMI",null,null,"UZDEVUMI"]
[]
[null,{"$f":"Grafika_diena","v":"2011-09-12"},{"$f":"Stundas_dienā_kopā","v":6.5},1,1.5,"Lasīšana",1,2,"Pētījums",null,1,"Lasīšana",1,1,"Kontroldarbs"]
[null,{"$f":"Grafika_diena","v":""},{"$f":"Stundas_dienā_kopā","v":""},1,1,"Pārskatīt uzdevumu"]
[null,{"$f":"Grafika_diena","v":""},{"$f":"Stundas_dienā_kopā","v":""}]
[null,{"$f":"Grafika_diena","v":""},{"$f":"Stundas_dienā_kopā","v":""}]
[null,{"$f":"Grafika_diena","v":""},{"$f":"Stundas_dienā_kopā","v":""}]
[null,{"$f":"Grafika_diena","v":"2011-09-13"},{"$f":"Stundas_dienā_kopā","v":0}]
[null,{"$f":"Grafika_diena","v":""},{"$f":"Stundas_dienā_kopā","v":""}]
[null,{"$f":"Grafika_diena","v":""},{"$f":"Stundas_dienā_kopā","v":""}]
[null,{"$f":"Grafika_diena","v":""},{"$f":"Stundas_dienā_kopā","v":""}]
[null,{"$f":"Grafika_diena","v":""},{"$f":"Stundas_dienā_kopā","v":""}]
[null,{"$f":"Grafika_diena","v":"2011-09-14"},{"$f":"Stundas_dienā_kopā","v":0}]
[null,{"$f":"Grafika_diena","v":""},{"$f":"Stundas_dienā_kopā","v":""}]
[null,{"$f":"Grafika_diena","v":""},{"$f":"Stundas_dienā_kopā","v":""}]
[null,{"$f":"Grafika_diena","v":""},{"$f":"Stundas_dienā_kopā","v":""}]
[null,{"$f":"Grafika_diena","v":""},{"$f":"Stundas_dienā_kopā","v":""}]
[null,{"$f":"Grafika_diena","v":"2011-09-15"},{"$f":"Stundas_dienā_kopā","v":0}]
[null,{"$f":"Grafika_diena","v":""},{"$f":"Stundas_dienā_kopā","v":""}]
[null,{"$f":"Grafika_diena","v":""},{"$f":"Stundas_dienā_kopā","v":""}]
[null,{"$f":"Grafika_diena","v":""},{"$f":"Stundas_dienā_kopā","v":""}]
[null,{"$f":"Grafika_diena","v":""},{"$f":"Stundas_dienā_kopā","v":""}]
[null,{"$f":"Grafika_diena","v":"2011-09-16"},{"$f":"Stundas_dienā_kopā","v":0}]
[null,{"$f":"Grafika_diena","v":""},{"$f":"Stundas_dienā_kopā","v":""}]
[null,{"$f":"Grafika_diena","v":""},{"$f":"Stundas_dienā_kopā","v":""}]
[null,{"$f":"Grafika_diena","v":""},{"$f":"Stundas_dienā_kopā","v":""}]
[null,{"$f":"Grafika_diena","v":""},{"$f":"Stundas_dienā_kopā","v":""}]
[null,{"$f":"Grafika_diena","v":"2011-09-17"},{"$f":"Stundas_dienā_kopā","v":0}]
[null,{"$f":"Grafika_diena","v":""},{"$f":"Stundas_dienā_kopā","v":""}]
[null,{"$f":"Grafika_diena","v":""},{"$f":"Stundas_dienā_kopā","v":""}]
[null,{"$f":"Grafika_diena","v":""},{"$f":"Stundas_dienā_kopā","v":""}]
[null,{"$f":"Grafika_diena","v":""},{"$f":"Stundas_dienā_kopā","v":""}]
[null,{"$f":"Grafika_diena","v":"2011-09-18"},{"$f":"Stundas_dienā_kopā","v":0}]
[null,{"$f":"Grafika_diena","v":""},{"$f":"Stundas_dienā_kopā","v":""}]
[null,{"$f":"Grafika_diena","v":""},{"$f":"Stundas_dienā_kopā","v":""}]
[null,{"$f":"Grafika_diena","v":""},{"$f":"Stundas_dienā_kopā","v":""}]
[null,{"$f":"Grafika_diena","v":""},{"$f":"Stundas_dienā_kopā","v":""}]
[null,{"$f":"Grafika_diena","v":""},{"$f":"Stundas_dienā_kopā","v":""}]
[null,{"$f":"Grafika_diena","v":""},{"$f":"Stundas_dienā_kopā","v":""}]
[null,{"$f":"Grafika_diena","v":""},{"$f":"Stundas_dienā_kopā","v":""}]
[null,{"$f":"Grafika_diena","v":""},{"$f":"Stundas_dienā_kopā","v":""}]
[null,{"$f":"Grafika_diena","v":""},{"$f":"Stundas_dienā_kopā","v":""}]
[null,{"$f":"Grafika_diena","v":""},{"$f":"Stundas_dienā_kopā","v":""}]
[null,{"$f":"Grafika_diena","v":""},{"$f":"Stundas_dienā_kopā","v":""}]
[null,{"$f":"Grafika_diena","v":""},{"$f":"Stundas_dienā_kopā","v":""}]
[null,{"$f":"Grafika_diena","v":""},{"$f":"Stundas_dienā_kopā","v":""}]
[null,{"$f":"Grafika_diena","v":""},{"$f":"Stundas_dienā_kopā","v":""}]
[null,{"$f":"Grafika_diena","v":""},{"$f":"Stundas_dienā_kopā","v":""}]
[null,{"$f":"Grafika_diena","v":""},{"$f":"Stundas_dienā_kopā","v":""}]
[null,{"$f":"Grafika_diena","v":""},{"$f":"Stundas_dienā_kopā","v":""}]
[null,{"$f":"Grafika_diena","v":""},{"$f":"Stundas_dienā_kopā","v":""}]
[null,{"$f":"Grafika_diena","v":""},{"$f":"Stundas_dienā_kopā","v":""}]
[null,{"$f":"Grafika_diena","v":""},{"$f":"Stundas_dienā_kopā","v":""}]
[null,{"$f":"Grafika_diena","v":""},{"$f":"Stundas_dienā_kopā","v":""}]
[null,{"$f":"Grafika_diena","v":""},{"$f":"Stundas_dienā_kopā","v":""}]
[null,{"$f":"Grafika_diena","v":""},{"$f":"Stundas_dienā_kopā","v":""}]
[null,{"$f":"Grafika_diena","v":""},{"$f":"Stundas_dienā_kopā","v":""}]
[null,{"$f":"Grafika_diena","v":""},{"$f":"Stundas_dienā_kopā","v":""}]
[null,{"$f":"Grafika_diena","v":""},{"$f":"Stundas_dienā_kopā","v":""}]
[null,{"$f":"Grafika_diena","v":""},{"$f":"Stundas_dienā_kopā","v":""}]
[null,{"$f":"Grafika_diena","v":""},{"$f":"Stundas_dienā_kopā","v":""}]
[null,{"$f":"Grafika_diena","v":""},{"$f":"Stundas_dienā_kopā","v":""}]
[null,{"$f":"Grafika_diena","v":""},{"$f":"Stundas_dienā_kopā","v":""}]
[null,{"$f":"Grafika_diena","v":""},{"$f":"Stundas_dienā_kopā","v":""}]
[null,{"$f":"Grafika_diena","v":""},{"$f":"Stundas_dienā_kopā","v":""}]
[null,{"$f":"Grafika_diena","v":""},{"$f":"Stundas_dienā_kopā","v":""}]
[null,{"$f":"Grafika_diena","v":""},{"$f":"Stundas_dienā_kopā","v":""}]
[null,{"$f":"Grafika_diena","v":""},{"$f":"Stundas_dienā_kopā","v":""}]
[null,{"$f":"Grafika_diena","v":""},{"$f":"Stundas_dienā_kopā","v":""}]
[null,{"$f":"Grafika_diena","v":""},{"$f":"Stundas_dienā_kopā","v":""}]
[null,{"$f":"Grafika_diena","v":""},{"$f":"Stundas_dienā_kopā","v":""}]
[null,{"$f":"Grafika_diena","v":""},{"$f":"Stundas_dienā_kopā","v":""}]
[null,{"$f":"Grafika_diena","v":""},{"$f":"Stundas_dienā_kopā","v":""}]
[null,{"$f":"Grafika_diena","v":""},{"$f":"Stundas_dienā_kopā","v":""}]
[null,{"$f":"Grafika_diena","v":""},{"$f":"Stundas_dienā_kopā","v":""}]
[null,{"$f":"Grafika_diena","v":""},{"$f":"Stundas_dienā_kopā","v":""}]
[null,{"$f":"Grafika_diena","v":""},{"$f":"Stundas_dienā_kopā","v":""}]
[null,{"$f":"Grafika_diena","v":""},{"$f":"Stundas_dienā_kopā","v":""}]
[null,{"$f":"Grafika_diena","v":""},{"$f":"Stundas_dienā_kopā","v":""}]
[null,{"$f":"Grafika_diena","v":""},{"$f":"Stundas_dienā_kopā","v":""}]
[null,{"$f":"Grafika_diena","v":""},{"$f":"Stundas_dienā_kopā","v":""}]
[null,{"$f":"Grafika_diena","v":""},{"$f":"Stundas_dienā_kopā","v":""}]
[null,{"$f":"Grafika_diena","v":""},{"$f":"Stundas_dienā_kopā","v":""}]
[null,{"$f":"Grafika_diena","v":""},{"$f":"Stundas_dienā_kopā","v":""}]
[null,{"$f":"Grafika_diena","v":""},{"$f":"Stundas_dienā_kopā","v":""}]
[null,{"$f":"Grafika_diena","v":""},{"$f":"Stundas_dienā_kopā","v":""}]
[null,{"$f":"Grafika_diena","v":""},{"$f":"Stundas_dienā_kopā","v":""}]
[null,{"$f":"Grafika_diena","v":""},{"$f":"Stundas_dienā_kopā","v":""}]
[null,{"$f":"Grafika_diena","v":""},{"$f":"Stundas_dienā_kopā","v":""}]
[null,{"$f":"Grafika_diena","v":""},{"$f":"Stundas_dienā_kopā","v":""}]
[null,{"$f":"Grafika_diena","v":""},{"$f":"Stundas_dienā_kopā","v":""}]
[null,{"$f":"Grafika_diena","v":""},{"$f":"Stundas_dienā_kopā","v":""}]
[null,{"$f":"Grafika_diena","v":""},{"$f":"Stundas_dienā_kopā","v":""}]
[null,{"$f":"Grafika_diena","v":""},{"$f":"Stundas_dienā_kopā","v":""}]
[null,{"$f":"Grafika_diena","v":""},{"$f":"Stundas_dienā_kopā","v":""}]
[null,{"$f":"Grafika_diena","v":""},{"$f":"Stundas_dienā_kopā","v":""}]
[null,{"$f":"Grafika_diena","v":""},{"$f":"Stundas_dienā_kopā","v":""}]
[null,{"$f":"Grafika_diena","v":""},{"$f":"Stundas_dienā_kopā","v":""}]
[null,{"$f":"Grafika_diena","v":""},{"$f":"Stundas_dienā_kopā","v":""}]